[Event "Int SVK-ch Open 2020"]
[Site "Drienica"]
[Date "2020.08.10"]
[Round "4.16"]
[White "Sedlak, Mikulas"]
[Black "Geffert, Peter"]
[Result "0-1"]
[ECO "B50"]
[WhiteElo "1573"]
[BlackElo "1857"]
[Annotator "NA"]
[PlyCount "86"]
[EventDate "2020.08.07"]
[EventType "swiss"]
[EventCountry "SVK"]
[SourceTitle "playchess.com"]
[Source "ChessBase"]
[SourceQuality "1"]
[TimeControl "40/5400+30:1800+30"]

1. e4 {[%emt 0:00:00]} c5 {[%emt 0:00:00]} 2. Nf3 {[%emt 0:00:00]} d6 {[%emt 0:00:27]} 3. c3 {[%emt 0:00:08]} Nf6 {[%emt 0:01:00]} 4. Be2 {[%emt 0:00:20]} Nc6 {[%emt 0:00:30]} 5. d3 {[%emt 0:00:27]} g6 {[%emt 0:03:54]} 6. Nbd2 {[%emt 0:01:43]} Bg7 {[%emt 0:01:07]} 7. O-O {[%emt 0:00:15]} O-O {[%emt 0:00:06]} 8. Qc2 {[%emt 0:01:09] [#] B50: Sicilian: 2...d6, Miscellaneous.} e6 $146 {[%emt 0:06:36]} ({Predecessor:} 8... e5 9. a3 Be6 10. b4 a6 11. Rb1 b5 12. Ng5 Bd7 13. Nb3 cxb4 14. axb4 Qc7 15. Bd1 Rfc8 {0-1 (38) Papadopoulos,P (2247)-Bashirli,N (2383) Belgrade 2019}) 9. h3 {[%emt 0:02:39]} a6 {[%emt 0:00:21]} 10. Nh2 {[%emt 0:00:52]} d5 {[%emt 0:05:57]} 11. Ng4 {[%emt 0:03:52]} e5 {[%emt 0:05:52]} 12. Nxf6+ {[%emt 0:00:27]} Bxf6 {[%emt 0:00:02]} 13. exd5 {[%emt 0:02:15]} Qxd5 {[%emt 0:00:22]} 14. Bf3 {[%emt 0:00:17]} Qe6 {[%emt 0:00:22]} 15. Bg4 {[%emt 0:07:59]} Qe7 {[%emt 0:00:42]} 16. Bxc8 {[%emt 0:00:08]} Raxc8 {[%emt 0:00:08]} 17. Ne4 {[%emt 0:00:58]} Bg7 {[%emt 0:01:47]} 18. Be3 {[%emt 0:02:14]} Nd8 {[%emt 0:07:11]} 19. Nxc5 {[%emt 0:10:20]} Rxc5 {[%emt 0:01:19]} 20. Bxc5 {[%emt 0:00:20]} Qxc5 {[%emt 0:00:02]} 21. Rfe1 {[%emt 0:01:10]} Ne6 {[%emt 0:00:27]} 22. Qe2 {[%emt 0:04:36]} Rd8 {[%emt 0:01:36]} 23. g3 {[%emt 0:04:02]} Qd5 {[%emt 0:01:46]} 24. Qe4 {[%emt 0:03:57]} Qxd3 {[%emt 0:01:16]} 25. Qxd3 {[%emt 0:00:22]} Rxd3 {[%emt 0:00:02]} 26. Rad1 {[%emt 0:00:09]} Nc5 {[%emt 0:01:37]} 27. Rxd3 {[%emt 0:01:56]} Nxd3 {[%emt 0:00:36]} 28. Re2 {[%emt 0:00:05]} f5 {[%emt 0:01:53]} 29. f3 {[%emt 0:01:15]} Kf7 {[%emt 0:01:38]} 30. b3 {[%emt 0:01:56]} Bh6 {[%emt 0:04:10]} 31. Kf1 {[%emt 0:03:00]} Kf6 {[%emt 0:02:25]} 32. Rc2 {[%emt 0:01:00]} e4 {[%emt 0:00:27]} 33. fxe4 {[%emt 0:00:46]} fxe4 {[%emt 0:00:02]} 34. Ke2 {[%emt 0:00:11]} Ke5 {[%emt 0:00:26]} 35. a3 {[%emt 0:02:12]} Nc1+ {[%emt 0:02:00]} 36. Kd1 {[%emt 0:01:13]} Nxb3 {[%emt 0:00:13]} 37. Rf2 {[%emt 0:00:46]} Ke6 {[%emt 0:01:22]} 38. g4 {[%emt 0:03:19] [#]} Bd2 $1 {[%emt 0:02:42]} 39. Rxd2 {[%emt 0:01:09]} (39. Rf8 $142 e3 40. Re8+ Kd5 41. Re7) 39... Nxd2 {[%emt 0:00:07]} 40. Kxd2 {[%emt 0:00:04]} g5 {[%emt 0:00:19]} 41. c4 {[%emt 0:30:37]} Ke5 {[%emt 0:30:10]} 42. Ke3 {[%emt 0:00:17]} b6 {[%emt 0:00:22]} 43. a4 {[%emt 0:00:34]} a5 {[%emt 0:00:10]} 0-1

[Event "Int SVK-ch Open 2020"]
[Site "Drienica"]
[Date "2020.08.10"]
[Round "4.17"]
[White "Kucik, Patrik"]
[Black "Banoci, Jaroslav"]
[Result "0-1"]
[ECO "B00"]
[WhiteElo "1561"]
[BlackElo "1831"]
[Annotator "NA"]
[PlyCount "74"]
[EventDate "2020.08.07"]
[EventType "swiss"]
[EventCountry "SVK"]
[SourceTitle "playchess.com"]
[Source "ChessBase"]
[SourceQuality "1"]
[TimeControl "40/5400+30:1800+30"]

1. e4 {[%emt 0:00:00]} d6 {[%emt 0:02:54]} 2. Nf3 {[%emt 0:00:00]} Nf6 {[%emt 0:00:27]} 3. Nc3 {[%emt 0:06:45]} g6 {[%emt 0:02:56]} 4. Bc4 {[%emt 0:01:47]} Bg7 {[%emt 0:00:48]} 5. d4 {[%emt 0:00:58]} O-O {[%emt 0:00:27]} 6. O-O {[%emt 0:01:10]} Nxe4 {[%emt 0:00:28]} 7. Nxe4 {[%emt 0:03:33]} d5 {[%emt 0:00:56]} 8. Bxd5 {[%emt 0:01:34]} Qxd5 {[%emt 0:00:13]} 9. Nc3 {[%emt 0:01:51]} Qd8 {[%emt 0:01:56]} 10. h3 {[%emt 0:01:46] B08: Pirc Defence: Classical System.} b6 {[%emt 0:02:40]} 11. Bf4 {[%emt 0:03:16] [#]} Bb7 $146 {[%emt 0:02:47]} ({Predecessor:} 11... Ba6 12. Re1 Nc6 13. Ne2 e6 14. c3 Qe7 15. Ng3 h6 16. d5 g5 17. Bxg5 hxg5 18. dxc6 {0-1 (56) Purev Dorj,T-Grischuk,A Bratislava 1993}) 12. Be3 {[%emt 0:08:20]} Nd7 {[%emt 0:01:54]} 13. Qe2 {[%emt 0:06:39]} Nf6 {[%emt 0:01:30]} 14. Rad1 {[%emt 0:01:35]} h6 {[%emt 0:06:12]} 15. a3 {[%emt 0:01:02]} e6 {[%emt 0:02:10]} 16. Ne5 {[%emt 0:05:14]} Kh7 {[%emt 0:02:38]} 17. Ng4 {[%emt 0:10:15]} Nh5 {[%emt 0:04:19]} 18. Qd2 {[%emt 0:02:48]} g5 {[%emt 0:01:19]} 19. Qe2 {[%emt 0:02:14]} Nf4 {[%emt 0:04:40]} 20. Bxf4 {[%emt 0:02:13]} gxf4 {[%emt 0:00:14]} 21. f3 {[%emt 0:03:09]} Bxd4+ {[%emt 0:07:02]} ({Better is} 21... Qg5 $15) 22. Kh1 {[%emt 0:03:10]} c5 {[%emt 0:01:44] [#]} 23. Nf2 $2 {[%emt 0:05:42]} (23. Nb5 $1 $16 {is forced if you want to stay better.}) 23... Qe7 {[%emt 0:08:05]} 24. Nfe4 {[%emt 0:03:13]} f5 {[%emt 0:01:25]} 25. Nd2 {[%emt 0:02:25]} Rg8 {[%emt 0:02:34]} 26. Nb3 {[%emt 0:01:52]} Be3 {[%emt 0:01:04]} 27. Rde1 {[%emt 0:02:38]} Rg6 {[%emt 0:06:09]} 28. Nd1 {[%emt 0:01:55]} Qg5 {[%emt 0:02:21]} 29. Nxe3 {[%emt 0:00:56]} fxe3 {[%emt 0:00:12]} 30. Rg1 {[%emt 0:01:17]} f4 {[%emt 0:00:56]} 31. Rd1 {[%emt 0:00:27]} Rg7 {[%emt 0:03:20]} 32. Rd6 {[%emt 0:01:15]} Bd5 {[%emt 0:02:03]} 33. c4 {[%emt 0:01:17]} Qe5 {[%emt 0:00:27]} 34. Qd3+ {[%emt 0:01:01]} Kh8 {[%emt 0:00:29]} 35. Rxd5 {[%emt 0:01:06]} exd5 {[%emt 0:00:14]} 36. cxd5 {[%emt 0:00:17]} Rd8 {[%emt 0:00:46]} 37. Rd1 {[%emt 0:05:15]} Rd6 $19 {[%emt 0:04:45]} 0-1

[Event "Int SVK-ch Open 2020"]
[Site "Drienica"]
[Date "2020.08.10"]
[Round "4.18"]
[White "Konyves, Almos"]
[Black "Harvan Tomas"]
[Result "1-0"]
[ECO "E36"]
[WhiteElo "2076"]
[BlackElo "1796"]
[Annotator "ChessBase"]
[PlyCount "49"]
[EventDate "2020.08.07"]
[EventType "swiss"]
[EventCountry "SVK"]
[SourceTitle "playchess.com"]
[Source "ChessBase"]
[SourceQuality "1"]
[TimeControl "40/5400+30:1800+30"]

1. d4 {[%emt 0:00:00]} Nf6 {[%emt 0:00:00]} 2. c4 {[%emt 0:00:00]} e6 {[%emt 0:00:07]} 3. Nc3 {[%emt 0:00:12]} Bb4 {[%emt 0:00:06]} 4. Qc2 {[%emt 0:00:51]} d5 {[%emt 0:01:07]} 5. a3 {[%emt 0:01:28]} Bxc3+ {[%emt 0:01:45]} 6. Qxc3 {[%emt 0:06:07]} O-O {[%emt 0:06:55]} 7. Bg5 {[%emt 0:03:00]} dxc4 {[%emt 0:13:26]} 8. Qxc4 {[%emt 0:06:15]} Nbd7 {[%emt 0:02:59]} 9. e3 {[%emt 0:02:15]} h6 {[%emt 0:12:21]} 10. Bh4 {[%emt 0:01:56]} Re8 {[%emt 0:03:40]} 11. Nf3 {[%emt 0:03:07]} e5 {[%emt 0:01:44]} 12. Rd1 {[%emt 0:23:43]} g5 {[%emt 0:11:01]} 13. Nxe5 {[%emt 0:05:19]} Qe7 {[%emt 0:07:48]} 14. Bg3 {[%emt 0:03:34]} c5 {[%emt 0:04:11]} 15. Be2 {[%emt 0:10:27]} cxd4 {[%emt 0:01:39]} 16. Nxd7 {[%emt 0:02:07]} Bxd7 {[%emt 0:00:45]} 17. Qxd4 {[%emt 0:01:11]} Bc6 {[%emt 0:01:11]} 18. O-O {[%emt 0:00:17]} Ne4 {[%emt 0:02:02]} 19. Bd6 {[%emt 0:04:08]} Qe6 {[%emt 0:02:16]} 20. Bc4 {[%emt 0:01:43]} Qg6 {[%emt 0:01:50]} 21. Be5 {[%emt 0:13:27]} Re7 {[%emt 0:07:02]} 22. f3 {[%emt 0:03:22]} Rd7 {[%emt 0:00:09]} 23. Qxd7 {[%emt 0:00:05]} Bxd7 {[%emt 0:00:23]} 24. Rxd7 {[%emt 0:00:05]} Nd2 {[%emt 0:05:12]} 25. Rxd2 {[%emt 0:00:33]} 1-0

[Event "Int SVK-ch Open 2020"]
[Site "Drienica"]
[Date "2020.08.10"]
[Round "4.18"]
[White "Sosovickova, Jana"]
[Black "Ihnat, Marek"]
[Result "1-0"]
[ECO "C06"]
[WhiteElo "1820"]
[BlackElo "1490"]
[Annotator "NA"]
[PlyCount "65"]
[EventDate "2020.08.07"]
[EventType "swiss"]
[EventCountry "SVK"]
[SourceTitle "playchess.com"]
[Source "ChessBase"]
[SourceQuality "1"]
[TimeControl "40/5400+30:1800+30"]

1. e4 {[%emt 0:00:00]} e6 {[%emt 0:00:00]} 2. d4 {[%emt 0:00:59]} d5 {[%emt 0:00:00]} 3. Nd2 {[%emt 0:01:52]} Nf6 {[%emt 0:00:18]} 4. Bd3 {[%emt 0:05:00]} c5 {[%emt 0:02:20]} 5. e5 {[%emt 0:02:40]} Nfd7 {[%emt 0:00:06]} 6. c3 {[%emt 0:01:00]} Nc6 {[%emt 0:00:06]} 7. Ne2 {[%emt 0:01:03]} cxd4 {[%emt 0:00:21]} 8. cxd4 {[%emt 0:00:51]} f6 {[%emt 0:00:39]} 9. exf6 {[%emt 0:13:08]} Nxf6 {[%emt 0:00:09]} 10. O-O {[%emt 0:01:24]} Bd6 {[%emt 0:00:06]} 11. Nf3 {[%emt 0:00:49]} Qc7 {[%emt 0:01:38]} 12. Ng3 {[%emt 0:03:14]} O-O {[%emt 0:03:59]} 13. Bg5 {[%emt 0:03:48]} h6 {[%emt 0:06:59] C06: French Tarrasch: 3...Nf6 4 e5 Nfd7 5 Bd3 main lines.} 14. Bd2 {[%emt 0:02:51] [#]} Bf4 $146 {[%emt 0:15:53]} ({Predecessor:} 14... Bd7 15. Rc1 Qb6 16. Bc3 Bf4 17. Rc2 Rac8 18. Re1 Nb4 19. Bxb4 Qxb4 20. Ree2 Ba4 21. b3 {½-½ (41) De la Paz Perdomo,F (2452)-Garcia Pantoja,R (2411) Havana 2011}) 15. Rc1 {[%emt 0:04:06]} Qd6 {[%emt 0:01:59]} 16. Bb1 {[%emt 0:04:46]} Bd7 {[%emt 0:05:31]} 17. Re1 {[%emt 0:05:44]} Rac8 {[%emt 0:06:30]} 18. a3 {[%emt 0:06:11]} Bxd2 {[%emt 0:01:05]} 19. Qxd2 {[%emt 0:00:48]} b6 {[%emt 0:09:29]} 20. Ne5 {[%emt 0:05:18]} Be8 {[%emt 0:07:29]} 21. Qe3 {[%emt 0:05:37]} Bf7 {[%emt 0:12:00]} 22. Ne2 {[%emt 0:13:15]} Rfe8 {[%emt 0:06:00]} 23. Nf4 {[%emt 0:05:39]} g5 $2 {[%emt 0:07:51]} (23... Ne7 24. Nxf7 Kxf7) 24. Nxf7 {[%emt 0:04:25]} Qxf4 {[%emt 0:01:34]} 25. Qxf4 {[%emt 0:00:19]} gxf4 $18 {[%emt 0:00:38]} 26. Nd6 {[%emt 0:00:12]} Ne7 {[%emt 0:07:23]} 27. Nxe8 {[%emt 0:01:16]} Rxe8 {[%emt 0:01:41]} 28. Rxe6 {[%emt 0:00:19]} Kf7 {[%emt 0:01:13]} 29. Rce1 {[%emt 0:01:21]} Ne4 {[%emt 0:00:34]} 30. Bxe4 {[%emt 0:01:01]} Kxe6 {[%emt 0:00:32]} 31. Bg6+ {[%emt 0:00:03]} Kd7 {[%emt 0:00:18]} 32. Bxe8+ {[%emt 0:00:05]} Kxe8 {[%emt 0:00:28]} 33. Re6 {[%emt 0:00:54]} 1-0

[Event "Int SVK-ch Open 2020"]
[Site "Drienica"]
[Date "2020.08.10"]
[Round "4.19"]
[White "Gulas, Gabriel"]
[Black "Recky, Norbert"]
[Result "1/2-1/2"]
[ECO "B23"]
[WhiteElo "1472"]
[BlackElo "1799"]
[Annotator "NA"]
[PlyCount "67"]
[EventDate "2020.08.07"]
[EventType "swiss"]
[EventCountry "SVK"]
[SourceTitle "playchess.com"]
[Source "ChessBase"]
[SourceQuality "1"]
[TimeControl "40/5400+30:1800+30"]

1. e4 {[%emt 0:00:00]} c5 {[%emt 0:00:00]} 2. Nc3 {[%emt 0:00:00]} d6 {[%emt 0:00:00]} 3. f4 {[%emt 0:00:00]} Nc6 {[%emt 0:00:07]} 4. Nf3 {[%emt 0:00:15]} g6 {[%emt 0:00:21]} 5. Bc4 {[%emt 0:00:25]} e6 {[%emt 0:00:21]} 6. d3 {[%emt 0:02:41]} Bg7 {[%emt 0:00:06]} 7. O-O {[%emt 0:01:00]} Nge7 {[%emt 0:00:07]} 8. a3 {[%emt 0:05:26]} O-O {[%emt 0:00:16]} 9. Qe1 {[%emt 0:00:52]} Nd4 {[%emt 0:00:46]} 10. Nxd4 {[%emt 0:00:37]} cxd4 {[%emt 0:01:02]} 11. Ne2 {[%emt 0:07:01]} d5 {[%emt 0:01:03]} 12. Bb3 {[%emt 0:01:43]} b6 {[%emt 0:05:18]} 13. Ng3 {[%emt 0:02:15]} f5 {[%emt 0:13:19]} 14. e5 {[%emt 0:01:24]} Nc6 {[%emt 0:00:27]} 15. Ba4 {[%emt 0:00:32]} Qc7 {[%emt 0:00:51]} 16. Ne2 {[%emt 0:01:08]} Na5 {[%emt 0:10:12]} 17. Nxd4 {[%emt 0:01:28]} Rf7 {[%emt 0:00:37]} 18. Bd2 {[%emt 0:04:06]} Nb7 {[%emt 0:04:44]} 19. Bc6 {[%emt 0:14:59]} a6 {[%emt 0:02:18]} 20. Bb4 {[%emt 0:17:26]} Bf8 {[%emt 0:06:03]} 21. Rc1 {[%emt 0:05:29]} Ra7 {[%emt 0:00:38]} 22. c4 {[%emt 0:08:20]} dxc4 {[%emt 0:01:20]} 23. Rxc4 {[%emt 0:00:26]} Nc5 {[%emt 0:00:28]} 24. Ba4 {[%emt 0:10:31]} b5 {[%emt 0:03:52]} 25. Bxb5 {[%emt 0:00:44]} axb5 {[%emt 0:00:09]} 26. Nxb5 Qb6 27. Qf2 {[%emt 0:01:49]} Qxb5 {[%emt 0:02:53]} 28. Bxc5 {[%emt 0:00:16]} Bxc5 {[%emt 0:01:45]} 29. Qxc5 {[%emt 0:00:49]} Qxc5+ {[%emt 0:01:22]} 30. Rxc5 {[%emt 0:00:06]} Ba6 {[%emt 0:00:04]} 31. Rd1 {[%emt 0:00:11]} Bb7 {[%emt 0:04:09]} 32. Rb5 {[%emt 0:02:35]} Rd7 {[%emt 0:00:35]} 33. d4 {[%emt 0:01:00]} Ra4 {[%emt 0:00:47]} 34. Rb6 {[%emt 0:03:25]} 1/2-1/2

[Event "Int SVK-ch Open 2020"]
[Site "Drienica"]
[Date "2020.08.10"]
[Round "4.20"]
[White "Ivanecka, Natalia"]
[Black "Magda, Juraj"]
[Result "1-0"]
[ECO "B34"]
[WhiteElo "1641"]
[BlackElo "1261"]
[Annotator "NA"]
[PlyCount "69"]
[EventDate "2020.08.07"]
[EventType "swiss"]
[EventCountry "SVK"]
[SourceTitle "playchess.com"]
[Source "ChessBase"]
[SourceQuality "1"]
[TimeControl "40/5400+30:1800+30"]

1. e4 c5 2. Nf3 Nc6 3. d4 cxd4 4. Nxd4 g6 5. Nc3 {[%emt 0:02:02]} Bg7 {[%emt 0:00:44]} 6. Be3 {[%emt 0:00:07]} Nf6 {[%emt 0:00:51]} 7. f3 {[%emt 0:02:23]} d6 {[%emt 0:00:24]} 8. Qd2 {[%emt 0:03:35]} O-O {[%emt 0:02:19]} 9. g4 {[%emt 0:07:54]} d5 {[%emt 0:05:55]} 10. exd5 {[%emt 0:13:31]} Nxd5 {[%emt 0:00:24]} 11. Nxc6 {[%emt 0:09:55]} Bxc3 {[%emt 0:01:00]} 12. Nxd8 {[%emt 0:10:34]} Bxd2+ {[%emt 0:00:11]} 13. Bxd2 {[%emt 0:00:05]} Rxd8 {[%emt 0:00:04]} 14. Bd3 {[%emt 0:01:12]} Bd7 {[%emt 0:08:00]} 15. O-O {[%emt 0:01:43]} Bc6 {[%emt 0:02:49]} 16. Rae1 {[%emt 0:03:39]} e6 {[%emt 0:00:52]} 17. Bg5 {[%emt 0:01:46]} f6 {[%emt 0:00:30]} 18. Bd2 {[%emt 0:04:07]} Re8 {[%emt 0:10:23]} 19. Re2 {[%emt 0:02:57]} b5 {[%emt 0:10:24]} 20. c4 {[%emt 0:03:52]} bxc4 {[%emt 0:00:48]} 21. Bxc4 {[%emt 0:00:09]} Kg7 {[%emt 0:05:58]} 22. Kf2 {[%emt 0:00:54]} h6 {[%emt 0:03:06]} 23. Rc1 {[%emt 0:02:14]} f5 {[%emt 0:05:50]} 24. Bxd5 {[%emt 0:02:06]} Bxd5 {[%emt 0:00:16]} 25. Rc7+ {[%emt 0:00:06]} Kg8 {[%emt 0:00:50]} 26. Bxh6 {[%emt 0:02:36]} fxg4 {[%emt 0:03:19]} 27. fxg4 {[%emt 0:02:08]} Reb8 {[%emt 0:02:59]} 28. b3 {[%emt 0:03:41]} a6 {[%emt 0:02:51]} 29. Rg7+ {[%emt 0:00:29]} Kh8 {[%emt 0:00:57]} 30. Rxg6 {[%emt 0:01:14]} Kh7 {[%emt 0:00:18]} 31. Rf6 {[%emt 0:00:09]} Rg8 {[%emt 0:03:40]} 32. Kg3 {[%emt 0:02:42]} Rg6 {[%emt 0:00:16]} 33. Rxg6 {[%emt 0:00:08]} Kxg6 {[%emt 0:00:27]} 34. Bf4 {[%emt 0:00:26]} Rb8 {[%emt 0:00:37]} 35. Bxb8 {[%emt 0:00:13]} 1-0

[Event "Int SVK-ch Open 2020"]
[Site "Drienica"]
[Date "2020.08.10"]
[Round "4.20"]
[White "Budjac, Martin"]
[Black "Lehocz, Jozsef"]
[Result "0-1"]
[ECO "A52"]
[WhiteElo "1511"]
[BlackElo "1959"]
[Annotator "ChessBase"]
[PlyCount "84"]
[EventDate "2020.08.07"]
[EventType "swiss"]
[EventCountry "SVK"]
[SourceTitle "playchess.com"]
[Source "ChessBase"]
[SourceQuality "1"]
[TimeControl "40/5400+30:1800+30"]

1. d4 {[%emt 0:00:00]} Nf6 {[%emt 0:00:00]} 2. c4 {[%emt 0:00:00]} e5 {[%emt 0:01:02]} 3. dxe5 {[%emt 0:00:00]} Ng4 {[%emt 0:00:30]} 4. Bf4 {[%emt 0:00:00]} Nc6 {[%emt 0:00:30]} 5. Nf3 {[%emt 0:00:00]} Bb4+ {[%emt 0:00:30]} 6. Nc3 {[%emt 0:00:00]} Qe7 {[%emt 0:05:02]} 7. Rc1 {[%emt 0:00:02]} Ngxe5 {[%emt 0:00:30]} 8. Nxe5 {[%emt 0:00:30]} Nxe5 {[%emt 0:17:13]} 9. a3 {[%emt 0:02:02]} Bxc3+ {[%emt 0:00:30]} 10. Rxc3 {[%emt 0:00:30]} O-O {[%emt 0:00:30]} 11. Qd5 {[%emt 0:00:30]} d6 {[%emt 0:00:30]} 12. c5 {[%emt 0:00:30]} Qf6 {[%emt 0:00:30]} 13. Bxe5 {[%emt 0:06:03]} dxe5 {[%emt 0:06:46]} 14. e3 {[%emt 0:07:02]} Be6 {[%emt 0:07:08]} 15. Qf3 {[%emt 0:00:20]} Qg6 {[%emt 0:02:43]} 16. Bd3 {[%emt 0:03:13]} f5 {[%emt 0:01:12]} 17. Qg3 {[%emt 0:00:31]} Qf6 {[%emt 0:03:43]} 18. h4 {[%emt 0:04:25]} Bd5 {[%emt 0:07:10]} 19. O-O {[%emt 0:03:49]} Rad8 {[%emt 0:04:26]} 20. Qg5 {[%emt 0:02:31]} Qe6 {[%emt 0:02:31]} 21. Rfc1 {[%emt 0:04:58]} Rf6 {[%emt 0:04:56]} 22. h5 {[%emt 0:00:10]} Rdf8 {[%emt 0:02:02]} 23. Bc4 {[%emt 0:03:06]} h6 {[%emt 0:07:34]} 24. Qh4 {[%emt 0:06:58]} f4 {[%emt 0:02:14]} 25. e4 {[%emt 0:02:44]} Bxc4 {[%emt 0:00:11]} 26. Rxc4 {[%emt 0:00:06]} Rd8 {[%emt 0:03:24]} 27. Qh3 {[%emt 0:03:59]} Qxh3 {[%emt 0:04:19]} 28. gxh3 {[%emt 0:00:08]} Rff8 {[%emt 0:01:32]} 29. Kg2 {[%emt 0:00:42]} Rd2 {[%emt 0:00:37]} 30. R4c2 {[%emt 0:01:05]} Rd4 {[%emt 0:00:39]} 31. Kf3 {[%emt 0:00:29]} Kf7 {[%emt 0:01:03]} 32. Re1 {[%emt 0:01:41]} Kf6 {[%emt 0:01:03]} 33. Kg4 {[%emt 0:00:19]} Rfd8 {[%emt 0:00:15]} 34. Ree2 {[%emt 0:04:38]} Rd1 {[%emt 0:00:39]} 35. Rc3 {[%emt 0:04:21]} Rg1+ {[%emt 0:01:37]} 36. Kh4 {[%emt 0:00:27]} Rdd1 {[%emt 0:05:26]} 37. b4 {[%emt 0:01:56]} Rg5 {[%emt 0:01:45]} 38. f3 {[%emt 0:04:54]} Rdg1 {[%emt 0:00:59]} 39. c6 {[%emt 0:03:58]} g6 {[%emt 0:00:11]} 40. hxg6 {[%emt 0:00:06]} Kxg6 {[%emt 0:00:07]} 41. Rg2 {[%emt 0:30:12]} R1xg2 {[%emt 0:30:09]} 42. cxb7 {[%emt 0:00:12]} Rh5# {[%emt 0:00:05]} 0-1

[Event "Int SVK-ch Open 2020"]
[Site "Drienica"]
[Date "2020.08.10"]
[Round "4.21"]
[White "Hros Roman"]
[Black "Durica, Andrej"]
[Result "1-0"]
[ECO "C25"]
[WhiteElo "2203"]
[BlackElo "1911"]
[Annotator "ChessBase"]
[PlyCount "25"]
[EventDate "2020.08.07"]
[EventType "swiss"]
[EventCountry "SVK"]
[SourceTitle "playchess.com"]
[Source "ChessBase"]
[SourceQuality "1"]
[TimeControl "40/5400+30:1800+30"]

1. e4 {[%emt 0:00:00]} e5 {[%emt 0:02:26]} 2. Nc3 {[%emt 0:00:26]} f5 {[%emt 0:01:59]} 3. exf5 {[%emt 0:01:06]} Nf6 {[%emt 0:00:15]} 4. g4 {[%emt 0:00:28]} Bc5 {[%emt 0:01:53]} 5. g5 {[%emt 0:02:03]} O-O {[%emt 0:00:19]} 6. gxf6 {[%emt 0:03:27]} Qxf6 {[%emt 0:00:10]} 7. Qf3 {[%emt 0:07:34]} c6 {[%emt 0:03:15]} 8. Ne4 {[%emt 0:16:46]} Qe7 {[%emt 0:00:17]} 9. Bh3 {[%emt 0:17:01]} Bb6 {[%emt 0:00:59]} 10. Ne2 {[%emt 0:12:50]} d5 {[%emt 0:00:15]} 11. f6 {[%emt 0:01:33]} gxf6 {[%emt 0:03:51]} 12. Bxc8 {[%emt 0:01:15]} Rxc8 {[%emt 0:02:39]} 13. Qg4+ {[%emt 0:01:00]} 1-0

[Event "Int SVK-ch Open 2020"]
[Site "Drienica"]
[Date "2020.08.10"]
[Round "4.21"]
[White "Kulich, Daniel"]
[Black "Kapolkova, Greta"]
[Result "1-0"]
[ECO "D04"]
[WhiteElo "1492"]
[BlackElo "1545"]
[Annotator "NA"]
[PlyCount "97"]
[EventDate "2020.08.07"]
[EventType "swiss"]
[EventCountry "SVK"]
[SourceTitle "playchess.com"]
[Source "ChessBase"]
[SourceQuality "1"]
[TimeControl "40/5400+30:1800+30"]

1. d4 {[%emt 0:00:00]} d5 {[%emt 0:00:00]} 2. Nf3 {[%emt 0:00:00]} Nf6 {[%emt 0:00:00]} 3. e3 {[%emt 0:00:00]} Bf5 {[%emt 0:00:28]} 4. Bd3 {[%emt 0:00:00]} Bg6 {[%emt 0:00:24]} 5. O-O {[%emt 0:00:03]} Nc6 {[%emt 0:00:34]} 6. a3 {[%emt 0:05:28]} e6 {[%emt 0:01:10]} 7. b3 {[%emt 0:03:09]} Bd6 {[%emt 0:02:19]} 8. Bb2 {[%emt 0:00:13]} Ne7 {[%emt 0:00:44]} 9. Ne5 {[%emt 0:00:40]} Bxe5 {[%emt 0:01:02]} 10. dxe5 {[%emt 0:00:08]} Ne4 {[%emt 0:00:49]} 11. Nc3 {[%emt 0:04:56]} Nc5 {[%emt 0:01:45]} 12. Be2 {[%emt 0:04:00]} O-O {[%emt 0:00:34]} 13. b4 {[%emt 0:00:18]} Nd7 {[%emt 0:00:18]} 14. Nb5 {[%emt 0:04:34]} a6 {[%emt 0:02:14]} 15. Nd4 {[%emt 0:00:35]} c5 {[%emt 0:01:01]} 16. Nf3 {[%emt 0:01:20]} Rc8 {[%emt 0:02:57]} 17. Nh4 {[%emt 0:00:34]} Qc7 {[%emt 0:05:23]} 18. b5 {[%emt 0:05:09]} c4 {[%emt 0:03:23]} 19. bxa6 {[%emt 0:00:50]} bxa6 {[%emt 0:00:33]} 20. f4 {[%emt 0:01:58]} Qb6 {[%emt 0:02:24]} 21. Bd4 {[%emt 0:00:40]} Nc5 {[%emt 0:01:58]} 22. Nxg6 {[%emt 0:01:55]} Nxg6 {[%emt 0:02:32]} 23. Bxc5 {[%emt 0:05:17]} Qxc5 {[%emt 0:00:16]} 24. Qd4 {[%emt 0:00:14]} Ne7 {[%emt 0:01:04]} 25. g4 {[%emt 0:00:31]} g6 {[%emt 0:01:29]} 26. Rfb1 {[%emt 0:03:04]} Qc7 {[%emt 0:01:04]} 27. Qb6 {[%emt 0:03:30]} Qc6 {[%emt 0:04:21]} 28. c3 {[%emt 0:08:02]} Qc5 {[%emt 0:04:16]} 29. Kf2 {[%emt 0:06:10]} Rc6 {[%emt 0:06:10]} 30. Qxc5 {[%emt 0:00:17]} Rxc5 {[%emt 0:00:17]} 31. Rb6 {[%emt 0:00:48]} a5 {[%emt 0:02:08]} 32. Rab1 {[%emt 0:00:52]} Rfc8 {[%emt 0:00:54]} 33. Bd1 {[%emt 0:02:08]} Kf8 {[%emt 0:02:55]} 34. Ba4 {[%emt 0:02:02]} h6 {[%emt 0:02:59]} 35. h4 {[%emt 0:01:18]} h5 {[%emt 0:00:55]} 36. gxh5 {[%emt 0:03:42]} gxh5 {[%emt 0:00:16]} 37. Bc2 {[%emt 0:02:41]} R5c6 {[%emt 0:02:48]} 38. R6b5 {[%emt 0:01:58]} Ra6 {[%emt 0:01:49]} 39. Rg1 {[%emt 0:00:59]} d4 {[%emt 0:10:09]} 40. cxd4 {[%emt 0:00:00]} Nd5 {[%emt 0:00:00]} 41. Rg5 {[%emt 0:02:40]} f5 {[%emt 0:08:02]} 42. exf6 {[%emt 0:01:58]} Nxf6 {[%emt 0:00:17]} 43. Rxa5 {[%emt 0:02:24]} Rb6 {[%emt 0:01:07]} 44. Rab5 {[%emt 0:02:56]} Rbc6 {[%emt 0:01:41]} 45. Rgc5 {[%emt 0:01:54]} c3 {[%emt 0:00:45]} 46. Ke2 {[%emt 0:01:22]} Nd5 {[%emt 0:01:53]} 47. Kd3 {[%emt 0:01:09]} Ke7 {[%emt 0:01:49]} 48. Bb3 {[%emt 0:02:07]} Rxc5 {[%emt 0:01:47]} 49. Rxc5 {[%emt 0:00:15]} 1-0